fUST/lending_fUST_20240523
["ID","MTS","AMOUNT","RATE_DAILY","PERIOD"]
[327733547,1716400162310,-478.13,0.0001894,3]
[327733548,1716400162331,-1817.98468055,0.0001895,2]
[327733587,1716400232721,-24900.0,0.00018983,2]
[327733588,1716400232730,-1494.18030243,0.00019046,2]
[327733591,1716400232742,-86.24674287,0.00019046,2]
[327733593,1716400232751,-821.60441259,0.00019354,2]
[327733597,1716400232763,-164.85313809,0.00019354,2]
[327733598,1716400232772,-244.34289239,0.0001957,2]
[327733601,1716400232781,-159.80396952,0.00019586,2]
[327733604,1716400232792,-1.10767348,0.00019586,2]
[327733606,1716400232801,-268.14145217,0.00019896,2]
[327733621,1716400239077,-15000.0,0.00018982,2]
[327733623,1716400239088,-10244.77324836,0.00019896,2]
[327733624,1716400239098,-34951.47558299,0.00019897,2]
[327733625,1716400239107,-527.39256429,0.0002,4]
[327733626,1716400239117,-6862.78891409,0.0002,5]
[327733627,1716400239128,-417.22450303,0.00020298,2]
[327733628,1716400239138,-637.46,0.0002031,3]
[327733629,1716400239147,-318.74,0.0002031,3]
[327733630,1716400239157,-4224.86010977,0.00020391,2]
[327733631,1716400239166,-244.34289239,0.00020434,2]
[327733632,1716400239176,-1738.77739682,0.00020513,2]
[327733633,1716400239186,-2078.16533448,0.00020513,2]
[327733634,1716400239196,-367.87739239,0.00020514,2]
[327733635,1716400239206,-500.0,0.00020514,2]
[327733636,1716400239215,-500.0,0.00020514,2]
[327733637,1716400239225,-485.1,0.00020514,2]
[327733638,1716400239235,-500.0,0.00020514,2]
[327733639,1716400239246,-268.59668125,0.00020514,2]
[327733640,1716400239256,-500.0,0.00020514,2]
[327733641,1716400239265,-158.7,0.00020514,2]
[327733642,1716400239275,-500.0,0.00020514,2]
[327733643,1716400239285,-500.0,0.00020514,2]
[327733644,1716400239294,-500.0,0.00020514,2]
[327733645,1716400239304,-500.0,0.00020514,2]
[327733646,1716400239314,-446.20133664,0.00020514,2]
[327733647,1716400239323,-500.0,0.00020514,2]
[327733648,1716400239333,-500.0,0.00020514,2]
[327733649,1716400239342,-500.0,0.00020514,2]
[327733650,1716400239352,-500.0,0.00020514,2]
[327733651,1716400239361,-500.0,0.00020514,2]
[327733652,1716400239373,-500.0,0.00020514,2]
[327733653,1716400239386,-500.0,0.00020514,2]
[327733654,1716400239395,-500.0,0.00020514,2]
[327733655,1716400239404,-500.0,0.00020514,2]
[327733656,1716400239414,-500.0,0.00020514,2]
[327733657,1716400239424,-500.0,0.00020514,2]
[327733658,1716400239434,-500.0,0.00020514,2]
[327733659,1716400239443,-500.0,0.00020514,2]
[327733660,1716400239453,-500.0,0.00020514,2]
[327733661,1716400239465,-500.0,0.00020514,2]
[327733662,1716400239475,-500.0,0.00020514,2]
[327733663,1716400239485,-500.0,0.00020514,2]
[327733664,1716400239494,-500.0,0.00020514,2]
[327733665,1716400239504,-500.0,0.00020514,2]
[327733666,1716400239513,-500.0,0.00020514,2]
[327733667,1716400239523,-500.0,0.00020514,2]
[327733668,1716400239533,-500.0,0.00020514,2]
[327733669,1716400239542,-500.0,0.00020514,2]
[327733670,1716400239552,-500.0,0.00020514,2]
[327733671,1716400239562,-500.0,0.00020514,2]
[327733672,1716400239571,-500.0,0.00020514,2]
[327733673,1716400239581,-500.0,0.00020514,2]
[327733674,1716400239591,-500.0,0.00020514,2]
[327733675,1716400239600,-500.0,0.00020514,2]
[327733676,1716400239610,-500.0,0.00020514,2]
[327733677,1716400239619,-500.0,0.00020514,2]
[327733678,1716400239631,-16771.33548024,0.00020515,11]
[327733679,1716400239641,-233.832768,0.00020515,2]
[327733680,1716400239650,-233.832768,0.00020515,2]
[327733681,1716400239665,-233.832768,0.00020515,2]
[327733682,1716400239675,-233.832768,0.00020515,2]
[327733683,1716400239684,-233.832768,0.00020515,2]
[327733684,1716400239694,-233.832768,0.00020515,2]
[327733685,1716400239703,-168.237479,0.00020534,2]
[327733686,1716400239713,-168.237479,0.00020534,2]
[327733687,1716400239722,-168.237479,0.00020534,2]
[327733688,1716400239732,-168.237479,0.00020534,2]
[327733689,1716400239744,-168.237479,0.00020534,2]
[327733690,1716400239754,-168.237479,0.00020534,2]
[327733691,1716400239764,-161.713389,0.00020648,2]
[327733692,1716400239774,-161.713389,0.00020648,2]
[327733693,1716400239784,-161.713389,0.00020648,2]
[327733694,1716400239793,-161.713389,0.00020648,2]
[327733695,1716400239803,-161.713389,0.00020648,2]
[327733696,1716400239812,-161.713389,0.00020648,2]
[327733697,1716400239822,-374.291918,0.00020648,2]
[327733698,1716400239832,-374.291918,0.00020648,2]
[327733699,1716400239842,-374.291918,0.00020648,2]
[327733700,1716400239852,-374.291918,0.00020648,2]
[327733701,1716400239862,-374.291918,0.00020649,2]
[327733702,1716400239872,-374.291918,0.00020649,2]
[327733703,1716400239881,-233.832768,0.00020649,2]
[327733704,1716400239891,-233.832768,0.00020649,2]
[327733705,1716400239900,-151.0,0.0002065,2]
[327733706,1716400239909,-151.0,0.0002065,2]
[327733707,1716400239918,-1230.437604,0.00020651,2]
[327733708,1716400239928,-1230.437604,0.00020651,2]
[327733709,1716400239937,-1230.437604,0.00020651,2]
[327733710,1716400239946,-1230.437604,0.00020651,2]
[327733711,1716400239956,-1230.437604,0.00020651,2]
[327733712,1716400239965,-1230.437604,0.00020651,2]
[327733713,1716400239975,-161.713389,0.00020651,2]
[327733714,1716400239984,-161.713389,0.00020651,2]
[327733715,1716400239993,-168.237479,0.00020651,2]
[327733716,1716400240003,-168.237479,0.00020651,2]
[327733717,1716400240012,-1496.69412767,0.00020652,2]
[327733718,1716400240022,-154.951723,0.00020653,2]
[327733719,1716400240031,-292.197804,0.00020653,2]
[327733720,1716400240040,-35476.84364773,0.00020654,2]
[327733721,1716400240049,-1230.437604,0.00020654,2]
[327733722,1716400240059,-1230.437604,0.00020654,2]
[327733723,1716400240068,-151.0,0.00020654,2]
[327733724,1716400240077,-161.713389,0.00020654,2]
[327733725,1716400240087,-161.713389,0.00020654,2]
[327733726,1716400240096,-374.291918,0.00020654,2]
[327733727,1716400240105,-374.291918,0.00020654,2]
[327733728,1716400240114,-168.237479,0.00020654,2]
[327733729,1716400240125,-168.237479,0.00020654,2]
[327733730,1716400240134,-233.832768,0.00020654,2]
[327733731,1716400240144,-233.832768,0.00020654,2]
[327733732,1716400240153,-314.83945112,0.00020655,2]
[327733733,1716400240163,-155.56258129,0.00020655,2]
[327733735,1716400240172,-12322.45852523,0.00020655,2]
[327733736,1716400240182,-309.65937778,0.00020911,2]
[327733737,1716400240192,-1849.28044218,0.00020912,2]
[327733738,1716400240201,-1230.437604,0.00020912,2]
[327733739,1716400240210,-1230.437604,0.00020912,2]
[327733740,1716400240220,-151.0,0.00020912,2]
[327733741,1716400240229,-161.713389,0.00020912,2]
[327733742,1716400240238,-161.713389,0.00020912,2]
[327733743,1716400240248,-374.291918,0.00020912,2]
[327733744,1716400240258,-374.291918,0.00020912,2]
[327733745,1716400240268,-168.237479,0.00020912,2]
[327733746,1716400240278,-168.237479,0.00020912,2]
[327733747,1716400240287,-233.832768,0.00020912,2]
[327733748,1716400240297,-233.832768,0.00020912,2]
[327733749,1716400240306,-4693.98893964,0.00021,2]
[327733750,1716400240316,-651.76271434,0.00022264,2]
[327733751,1716400240325,-156.45299204,0.00022291,2]
[327733752,1716400240335,-690.19911136,0.00022291,2]
[327733753,1716400240345,-750.70191052,0.00022291,2]
[327733754,1716400240355,-493.63116231,0.00022291,2]
[327733755,1716400240365,-158.90537747,0.00022291,2]
[327733756,1716400240377,-154.95351395,0.00022291,2]
[327733757,1716400240389,-350.07606363,0.00022291,2]
[327733758,1716400240399,-1885.45852368,0.00022291,2]
[327733759,1716400240408,-284.39174156,0.00022291,2]
[327733760,1716400240418,-395.32769299,0.00022291,2]
[327733761,1716400240427,-308.23787292,0.00022291,2]
[327733762,1716400240437,-942.26758453,0.00022291,2]
[327733763,1716400240447,-315.84581765,0.00022291,2]
[327733764,1716400240457,-513.4844886,0.00022291,2]
[327733765,1716400240468,-155.12657484,0.00022291,2]
[327733766,1716400240478,-256.59957604,0.00022291,2]
[327733767,1716400240494,-578.90134109,0.00022291,2]
[327733768,1716400240503,-260.87129865,0.00022291,2]
[327733770,1716400240513,-1285.52418112,0.00022291,2]
[327733772,1716400240522,-283.51136865,0.00022291,2]
[327733773,1716400240531,-1383.99181048,0.00022291,2]
[327733774,1716400240544,-66.81703848,0.00022291,2]
[327733775,1716400240553,-355.03147672,0.00022291,2]
[327733776,1716400240563,-167.78261196,0.00022291,2]
[327733777,1716400240573,-151.0,0.00022291,2]
[327733778,1716400240583,-161.713389,0.00022291,2]
[327733779,1716400240593,-161.713389,0.00022291,2]
[327733780,1716400240602,-374.291918,0.00022291,2]
[327733781,1716400240612,-374.291918,0.00022291,2]
[327733782,1716400240622,-168.237479,0.00022291,2]
[327733783,1716400240632,-168.237479,0.00022291,2]
[327733784,1716400240642,-152.85551768,0.00022291,2]
[327733807,1716400247795,-202.136412,0.00020515,2]
[327733808,1716400247805,-202.136412,0.00020515,2]
[327733809,1716400247814,-151.0,0.00020515,2]
[327733810,1716400247824,-151.0,0.00020515,2]
[327733811,1716400247832,-151.0,0.00020515,2]
[327733812,1716400247841,-202.136412,0.00020515,2]
[327733813,1716400247851,-202.136412,0.00020515,2]
[327733814,1716400247860,-151.0,0.00020649,2]
[327733815,1716400247869,-202.136412,0.00020651,2]
[327733816,1716400247880,-202.136412,0.00020651,2]
[327733817,1716400247889,-202.136412,0.00020654,2]
[327733818,1716400247902,-151.0,0.00020654,2]
[327733819,1716400247911,-202.136412,0.00020654,2]
[327733820,1716400247920,-151.0,0.00020912,2]
[327733821,1716400247930,-202.136412,0.00021,2]
[327733822,1716400247940,-202.136412,0.00021,2]
[327733823,1716400247950,-80.97725032,0.00022291,2]
[327733824,1716400247960,-233.832768,0.00022291,2]
[327733825,1716400247969,-151.0,0.00022291,2]
[327733826,1716400247978,-942.18705609,0.00022292,2]
[327733845,1716400807875,-150.0,0.0003438,30]
[327733846,1716400807899,-3822.62928322,0.0003438,30]
[327733847,1716400807920,-1000.0,0.0003438,120]
[327733848,1716400807943,-1000.0,0.0003438,120]
[327733849,1716400807965,-1740.60759611,0.0003438,120]
[327733850,1716400807986,-507.46022935,0.0003438,30]
[327733851,1716400808008,-1321.85846534,0.0003438,30]
[327733852,1716400808030,-2501.36380227,0.0003438,120]
[327733853,1716400808051,-1164.76869053,0.0003438,30]
[327733854,1716400808072,-2474.44174483,0.0003438,120]
[327733855,1716400808097,-2000.0,0.0003438,120]
[327733856,1716400808118,-1014.5944266,0.0003438,120]
[327733857,1716400808141,-8396.74904809,0.0003438,30]
[327733858,1716400808164,-1694.58350472,0.0003438,30]
[327733859,1716400808186,-2418.32177499,0.0003438,30]
[327733860,1716400808208,-377530.91230788,0.0003438,120]
[327733861,1716400808230,-415.25883245,0.0003438,30]
[327733862,1716400808252,-14417.42470848,0.0003438,30]
[327733863,1716400808273,-974.5,0.0003438,30]
[327733864,1716400808295,-14782.70310731,0.0003438,30]
[327733876,1716401134169,-279.96986186,0.00018117,2]
[327733878,1716401206928,1898.47491461,9.999e-05,2]
[327733879,1716401217143,-1898.47804059,0.00018115,2]
[327733880,1716401237181,-296.00455824,0.00017839,2]
[327733891,1716401308261,-10512.91470053,0.00017435,2]
[327733892,1716401308306,-34951.47558299,0.00017435,2]
[327733893,1716401308352,-24900.0,0.00017436,2]
[327733894,1716401308395,-83.70902376,0.00017839,2]
[327733895,1716401308439,-1320.89786634,0.00018014,2]
[327733896,1716401308481,-151.19278511,0.00018014,2]
[327733897,1716401308642,-13101.52195941,0.00018115,2]
[327733898,1716401308686,-2594.72865998,0.00018116,2]
[327733899,1716401308729,-315.95091724,0.00018117,2]
[327733900,1716401308772,-500.0,0.00019178,2]
[327733901,1716401308812,-587.22466664,0.00019178,2]
[327733902,1716401308856,-151.19278509,0.00019413,2]
[327733903,1716401308898,-527.39256429,0.00020413,4]
[327733904,1716401308943,-922.34407688,0.00020414,2]
[327733905,1716401308986,-1163.39737808,0.00020414,2]
[327733906,1716401309030,-189.67594195,0.00020414,2]
[327733907,1716401309073,-4579.8151315,0.00020514,2]
[327733908,1716401309117,-1320.89786628,0.00020593,2]
[327733909,1716401309159,-151.19278509,0.00020812,2]
[327733910,1716401309202,-714.13,0.00020902,3]
[327733911,1716401309246,-275.02529284,0.00020911,2]
[327733912,1716401309294,-8385.66774013,0.00020912,11]
[327733913,1716401309437,-500.0,0.00020912,2]
[327733914,1716401309482,-500.0,0.00020912,2]
[327733915,1716401309526,-438.70791272,0.00020912,2]
[327733916,1716401309573,-500.0,0.00020912,2]
[327733917,1716401309618,-431.9,0.00020912,2]
[327733918,1716401309664,-433.86040099,0.00020912,2]
[327733919,1716401309710,-417.91,0.00020912,2]
[327733920,1716401309760,-500.0,0.00020912,2]
[327733921,1716401309806,-500.0,0.00020912,2]
[327733922,1716401309854,-500.0,0.00020912,2]
[327733923,1716401309900,-500.0,0.00020912,2]
[327733924,1716401309947,-640.94949153,0.00020912,2]
[327733925,1716401309994,-500.0,0.00020912,2]
[327733926,1716401310057,-500.0,0.00020912,2]
[327733927,1716401310137,-500.0,0.00020912,2]
[327733928,1716401310210,-500.0,0.00020912,2]
[327733929,1716401310286,-500.0,0.00020912,2]
[327733930,1716401310358,-500.0,0.00020912,2]
[327733931,1716401310429,-500.0,0.00020912,2]
[327733932,1716401310505,-500.0,0.00020912,2]
[327733933,1716401310574,-500.0,0.00020912,2]
[327733934,1716401310643,-500.0,0.00020912,2]
[327733935,1716401310709,-500.0,0.00020912,2]
[327733936,1716401310780,-500.0,0.00020912,2]
[327733937,1716401310847,-500.0,0.00020912,2]
[327733938,1716401310913,-934.42791168,0.00020912,2]
[327733939,1716401311195,-934.42791168,0.00020912,2]
[327733940,1716401311250,-934.42791168,0.00020912,2]
[327733941,1716401311300,-934.42791168,0.00020912,2]
[327733942,1716401311347,-934.42791168,0.00020912,2]
[327733943,1716401311394,-934.42791168,0.00020912,2]
[327733944,1716401311439,-934.42791168,0.00020912,2]
[327733945,1716401311484,-934.42791168,0.00020912,2]
[327733946,1716401311527,-934.42791168,0.00020912,2]
[327733947,1716401311572,-934.42791168,0.00020912,2]
[327733948,1716401311617,-934.42791168,0.00020912,2]
[327733949,1716401311665,-934.42791168,0.00020912,2]
[327733950,1716401311710,-934.42791168,0.00020912,2]
[327733951,1716401311761,-934.42791168,0.00020912,2]
[327733952,1716401311804,-934.42791168,0.00020912,2]
[327733953,1716401311850,-934.42791168,0.00020912,2]
[327733954,1716401311896,-934.42791168,0.00020912,2]
[327733955,1716401311941,-934.42791168,0.00020912,2]
[327733956,1716401311988,-934.42791168,0.00020912,2]
[327733957,1716401312145,-934.42791168,0.00020912,2]
[327733958,1716401312195,-934.42791168,0.00020912,2]
[327733959,1716401312243,-934.42791168,0.00020912,2]
[327733960,1716401312292,-934.42791168,0.00020912,2]
[327733961,1716401312340,-934.42791168,0.00020912,2]
[327733962,1716401312387,-934.42791168,0.00020912,2]
[327733963,1716401312433,-934.42791168,0.00020912,2]
[327733964,1716401312479,-934.42791168,0.00020912,2]
[327733965,1716401312525,-934.42791168,0.00020912,2]
[327733966,1716401312571,-934.42791168,0.00020912,2]
[327733967,1716401312617,-934.42791168,0.00020912,2]
[327733968,1716401312661,-934.42791168,0.00020912,2]
[327733969,1716401312707,-934.42791168,0.00020912,2]
[327733970,1716401312753,-907.72997135,0.00020912,2]
[327733971,1716401312808,-907.72997135,0.00020912,2]
[327733972,1716401312853,-907.72997135,0.00020912,2]
[327733973,1716401312897,-907.72997135,0.00020912,2]
[327733974,1716401312942,-907.72997135,0.00020912,2]
[327733975,1716401313089,-907.72997135,0.00020912,2]
[327733976,1716401313137,-907.72997135,0.00020912,2]
[327733977,1716401313183,-907.72997135,0.00020912,2]
[327733978,1716401313228,-907.72997135,0.00020912,2]
[327733979,1716401313276,-907.72997135,0.00020912,2]
[327733980,1716401313322,-907.72997135,0.00020912,2]
[327733981,1716401313368,-907.72997135,0.00020912,2]
[327733982,1716401313413,-907.72997135,0.00020912,2]
[327733983,1716401313459,-907.72997135,0.00020912,2]
[327733984,1716401313508,-907.72997135,0.00020912,2]
[327733985,1716401313555,-907.72997135,0.00020912,2]
[327733986,1716401313600,-881.79482931,0.00020912,2]
[327733987,1716401313646,-881.79482931,0.00020912,2]
[327733988,1716401313689,-881.79482931,0.00020912,2]
[327733989,1716401313732,-3966.85568654,0.00021,2]
[327733990,1716401314537,527.39256429,0.0002,4]
[327733991,1716401321558,4621.9136182,0.00020913,2]
[327733994,1716401325818,15000.0,0.00020913,2]
[327734042,1716401433278,-316.23475701,0.00022152,2]
[327734043,1716401433290,-3908.62535276,0.00022152,2]
[327734044,1716401433299,-891.20509561,0.00022208,2]
[327734045,1716401433308,-309.62844586,0.00022291,2]
[327734047,1716401433318,-5007.94888518,0.00022292,2]
[327734048,1716401433327,-5600.0,0.000223,6]
[327734049,1716401433336,-633.56025478,0.00023319,2]
[327734050,1716401433346,-238.417554,0.00024384,2]
[327734051,1716401433355,-174.621028,0.00024384,2]
[327734052,1716401433364,-615.218802,0.00024384,2]
[327734053,1716401433373,-615.218802,0.00024384,2]
[327734054,1716401433383,-620.67801274,0.00024484,2]
[327734055,1716401433392,-15000.0,0.00024657,2]
[327734056,1716401433401,-380.0,0.00024658,2]
[327734057,1716401433411,-527.39256429,0.00024998,4]
[327734058,1716401433420,-3057.98745305,0.00024999,2]
[327734099,1716401439514,-908.86823349,0.00024999,2]
[327734101,1716401439524,-4659.80483748,0.00025,30]
[327734103,1716401439536,-7159.9566908,0.00025,30]
[327734105,1716401439546,-168.09492457,0.00025,2]
[327734107,1716401439556,-400.71262343,0.00025,2]
[327734108,1716401439566,-362.20721548,0.00025,2]
[327734109,1716401439575,-151.0,0.00025016,5]
[327734110,1716401439584,-151.0,0.00025016,5]
[327734112,1716401439593,-620.03390064,0.00025709,2]
[327734114,1716401439606,-151.0,0.0002578,5]
[327734116,1716401439616,-151.0,0.0002578,5]
[327734118,1716401439625,-316.23475701,0.00025999,2]
[327734119,1716401439635,-6895.68318444,0.00026,2]
[327734120,1716401439644,-342.9726524,0.00026384,2]
[327734121,1716401439653,-357.06,0.0002649,3]
[327734122,1716401439662,-4868.41,0.00026491,3]
[327734123,1716401439672,-4057.0,0.00026491,3]
[327734124,1716401439682,-3380.84,0.00026491,3]
[327734125,1716401439692,-393.39,0.000265,2]
[327734126,1716401439701,-400.22588614,0.000265,2]
[327734127,1716401439710,-188.01767688,0.000265,2]
[327734128,1716401439720,-500.0,0.000265,2]
[327734129,1716401439729,-500.0,0.000265,2]
[327734130,1716401439739,-185.1,0.000265,2]
[327734131,1716401439749,-500.0,0.000265,2]
[327734132,1716401439758,-500.0,0.000265,2]
[327734133,1716401439767,-500.0,0.000265,2]
[327734134,1716401439777,-500.0,0.000265,2]
[327734135,1716401439786,-500.0,0.000265,2]
[327734136,1716401439806,-500.0,0.000265,2]
[327734137,1716401439825,-500.0,0.000265,2]
[327734138,1716401439842,-500.0,0.000265,2]
[327734139,1716401439862,-500.0,0.000265,2]
[327734140,1716401439883,-500.0,0.000265,2]
[327734141,1716401439902,-500.0,0.000265,2]
[327734142,1716401439920,-500.0,0.000265,2]
[327734143,1716401439937,-500.0,0.000265,2]
[327734144,1716401439953,-500.0,0.000265,2]
[327734145,1716401439967,-500.0,0.000265,2]
[327734146,1716401439981,-500.0,0.000265,2]
[327734147,1716401439999,-500.0,0.000265,2]
[327734148,1716401440017,-500.0,0.000265,2]
[327734149,1716401440037,-483.00621254,0.000265,2]
[327734150,1716401440049,-500.0,0.000265,2]
[327734151,1716401440067,-500.0,0.000265,2]
[327734152,1716401440085,-500.0,0.000265,2]
[327734153,1716401440098,-500.0,0.000265,2]
[327734154,1716401440119,-500.0,0.000265,2]
[327734155,1716401440132,-500.0,0.000265,2]
[327734156,1716401440147,-200.00000001,0.000265,2]
[327734157,1716401440163,-500.0,0.000265,2]
[327734158,1716401440177,-500.0,0.000265,2]
[327734159,1716401440192,-500.0,0.000265,2]
[327734160,1716401440206,-500.0,0.000265,2]
[327734161,1716401440223,-500.0,0.000265,2]
[327734162,1716401440237,-500.0,0.000265,2]
[327734163,1716401440252,-500.0,0.000265,2]
[327734164,1716401440267,-4192.83387006,0.00026501,11]
[327734165,1716401440282,-1558.86503853,0.00026501,2]
[327734166,1716401440295,-6378.98524924,0.00026501,2]
[327734167,1716401440314,-35813.74883161,0.00026501,2]
[327734168,1716401440328,-615.218802,0.00026501,2]
[327734169,1716401440342,-615.218802,0.00026501,2]
[327734170,1716401440359,-22908.9969464,0.00026502,2]
[327734171,1716401440373,-309.6903097,0.00026503,2]
[327734172,1716401440389,-909.28942847,0.00026503,2]
[327734173,1716401440404,-238.75882037,0.00026503,2]
[327734174,1716401440418,-1429.58560491,0.00026503,2]
[327734175,1716401440433,-2634.32657847,0.00026504,2]
[327734176,1716401440447,-8327.3475981,0.00026504,2]
[327734177,1716401440461,-32289.74595384,0.00026505,2]
[327734183,1716401441026,3640.27072653,0.0002,2]
[327734201,1716401444247,-306.13305527,0.000223,6]
[327734229,1716401551572,274.46479269,0.000165,2]
[327734230,1716401563179,154.98450155,9.999e-05,2]
[327734240,1716401594112,154.98450155,9.999e-05,2]
[327734241,1716401608043,184.15810532,9.999e-05,2]
[327734247,1716401752854,4640.54277067,0.00020913,2]
[327734314,1716402506192,2700.0,0.00017,2]
[327734544,1716402640640,-150.0,0.000189,2]
[327734545,1716402640649,-990.67339971,0.00020812,2]
[327734546,1716402640659,-162.16026097,0.00020812,2]
[327734547,1716402640670,-3378.76029837,0.00020912,2]
[327734548,1716402640682,-11621.23970163,0.00020912,2]
[327734549,1716402640692,-500.0,0.00020912,2]
[327734550,1716402640702,-500.0,0.00020912,2]
[327734551,1716402640711,-186.81745322,0.00020912,2]
[327734552,1716402640721,-500.0,0.00020912,2]
[327734553,1716402640731,-500.0,0.00020912,2]
[327734554,1716402640741,-500.0,0.00020912,2]
[327734555,1716402640751,-500.0,0.00020912,2]
[327734556,1716402640763,-500.0,0.00020912,2]
[327734557,1716402640772,-500.0,0.00020912,2]
[327734558,1716402640782,-500.0,0.00020912,2]
[327734559,1716402640791,-500.0,0.00020912,2]
[327734560,1716402640801,-500.0,0.00020912,2]
[327734561,1716402640811,-500.0,0.00020912,2]
[327734562,1716402640821,-500.0,0.00020912,2]
[327734563,1716402640831,-500.0,0.00020912,2]
[327734564,1716402640841,-500.0,0.00020912,2]
[327734565,1716402640854,-500.0,0.00020912,2]
[327734566,1716402640864,-500.0,0.00020912,2]
[327734567,1716402640874,-500.0,0.00020912,2]
[327734568,1716402640884,-500.0,0.00020912,2]
[327734569,1716402640894,-186.47055913,0.00020912,2]
[327734570,1716402640904,-500.0,0.00020912,2]
[327734571,1716402640914,-500.0,0.00020912,2]
[327734572,1716402640923,-500.0,0.00020912,2]
[327734573,1716402640933,-500.0,0.00020912,2]
[327734574,1716402640943,-500.0,0.00020912,2]
[327734575,1716402640952,-500.0,0.00020912,2]
[327734576,1716402640962,-268.43130463,0.00020912,2]
[327734577,1716402640972,-500.0,0.00020912,2]
[327734578,1716402640982,-500.0,0.00020912,2]
[327734579,1716402640991,-500.0,0.00020912,2]
[327734580,1716402641003,-500.0,0.00020912,2]
[327734581,1716402641015,-500.0,0.00020912,2]
[327734582,1716402641025,-500.0,0.00020912,2]
[327734583,1716402641035,-500.0,0.00020912,2]
[327734584,1716402641044,-500.0,0.00020912,2]
[327734585,1716402641055,-1093.8433614,0.00020913,11]
[327734616,1716402644514,-720.11009845,0.00020912,2]
[327734617,1716402644527,-500.0,0.00020912,2]
[327734618,1716402644538,-500.0,0.00020912,2]
[327734619,1716402644548,-451.50748129,0.00020912,2]
[327734620,1716402644559,-200.0,0.00020912,2]
[327734621,1716402644570,-500.0,0.00020912,2]
[327734622,1716402644580,-500.0,0.00020912,2]
[327734623,1716402644592,-500.0,0.00020912,2]
[327734624,1716402644603,-500.0,0.00020912,2]
[327734625,1716402644614,-500.0,0.00020912,2]
[327734626,1716402644624,-450.0,0.00020912,2]
[327734627,1716402644635,-500.0,0.00020912,2]
[327734628,1716402644645,-500.0,0.00020912,2]
[327734629,1716402644810,-500.0,0.00020912,2]
[327734630,1716402644821,-250.0,0.00020912,2]
[327734631,1716402644832,-500.0,0.00020912,2]
[327734632,1716402644842,-500.0,0.00020912,2]
[327734633,1716402644853,-500.0,0.00020912,2]
[327734634,1716402644864,-500.0,0.00020912,2]
[327734635,1716402644875,-500.0,0.00020912,2]
[327734636,1716402644886,-500.0,0.00020912,2]
[327734637,1716402644897,-500.0,0.00020912,2]
[327734638,1716402644907,-500.0,0.00020912,2]
[327734639,1716402644917,-3830.43424184,0.00020913,11]
[327734640,1716402644928,-309.87604958,0.00020913,2]
[327734641,1716402644940,-12309.18343511,0.00020913,2]
[327734657,1716402647661,-284.2518767,0.00020911,2]
[327734659,1716402647672,-2004.92033865,0.00020911,2]
[327734661,1716402647682,-7185.45277831,0.00020912,2]
[327734662,1716402647694,-7753.95924117,0.00020912,2]
[327734663,1716402647705,-719.79,0.00020912,2]
[327734664,1716402648516,158.62725688,0.0001,2]
[327734665,1716402648539,183.7312369,0.0001,2]
[327734666,1716402648563,1108.83519167,0.0001,2]
[327734669,1716402664287,772.36964669,9.999e-05,2]
[327734672,1716402676130,274.46479269,0.000165,2]
[327734674,1716402703292,1684.91556334,0.00015,2]
[327734676,1716402724040,11060.38935535,9.999e-05,2]
[327734679,1716402752698,2220.65216941,0.00019911,11]
[327734681,1716402765836,1898.47491461,9.999e-05,2]
[327734682,1716402777626,2679.91725099,9.999e-05,2]
[327734683,1716402812298,1110.32608471,0.00019863,11]
[327734684,1716402812820,2462.13880163,0.00019863,11]
[327734691,1716402870064,555.16304235,0.00019863,11]
[327734696,1716402933014,277.58152117,0.00019863,11]
[327734697,1716402933096,1231.06940081,0.00019863,11]